fUST/lending_fUST_20240517
["ID","MTS","AMOUNT","RATE_DAILY","PERIOD"]
[327270895,1715953841973,-500.0,0.00016438,2]
[327270897,1715953841983,-500.0,0.00016438,2]
[327270899,1715953841991,-500.18295556,0.00016438,2]
[327270901,1715953842002,-500.0,0.00016438,2]
[327270903,1715953842012,-500.0,0.00016438,2]
[327270904,1715953842022,-619.93888097,0.00016438,2]
[327270906,1715953842031,-500.0,0.00016438,2]
[327270908,1715953842041,-580.52,0.00016438,2]
[327270910,1715953842050,-501.41407099,0.00016438,2]
[327270912,1715953842061,-500.0,0.00016438,2]
[327270914,1715953842071,-500.0,0.00016438,2]
[327270917,1715953842080,-500.0,0.00016438,2]
[327270918,1715953842090,-500.0,0.00016438,2]
[327270921,1715953842100,-484.70032344,0.00016438,2]
[327270922,1715953842109,-500.0,0.00016438,2]
[327270924,1715953842119,-500.0,0.00016438,2]
[327270926,1715953842128,-500.0,0.00016438,2]
[327270928,1715953842137,-500.0,0.00016438,2]
[327270930,1715953842147,-500.0,0.00016438,2]
[327270932,1715953842156,-500.0,0.00016438,2]
[327270934,1715953842165,-500.0,0.00016438,2]
[327270936,1715953842175,-504.84163193,0.00016438,2]
[327270938,1715953842185,-500.0,0.00016438,2]
[327270940,1715953842194,-505.18062299,0.00016438,2]
[327270942,1715953842205,-567.74176865,0.00016438,2]
[327270944,1715953842215,-531.34110359,0.00016438,2]
[327270946,1715953842224,-500.0,0.00016438,2]
[327270948,1715953842234,-500.0,0.00016438,2]
[327270950,1715953842243,-315.08786585,0.00016438,2]
[327270952,1715953842252,-500.0,0.00016438,2]
[327270954,1715953842262,-514.39481463,0.00016438,2]
[327270956,1715953842272,-501.44891104,0.00016438,2]
[327270958,1715953842281,-500.0,0.00016438,2]
[327270960,1715953842291,-501.92349467,0.00016438,2]
[327270962,1715953842301,-501.04937002,0.00016438,2]
[327270964,1715953842310,-393.78231505,0.00016438,2]
[327270966,1715953842319,-601.83666588,0.00016438,2]
[327270968,1715953842328,-500.0,0.00016438,2]
[327270970,1715953842339,-500.0,0.00016438,2]
[327270972,1715953842348,-500.0,0.00016438,2]
[327270975,1715953842367,-500.0,0.00016438,2]
[327270977,1715953842377,-500.0,0.00016438,2]
[327270979,1715953842386,-500.0,0.00016438,2]
[327270981,1715953842396,-505.14416001,0.00016438,2]
[327270983,1715953842406,-500.0,0.00016438,2]
[327270985,1715953842416,-500.0,0.00016438,2]
[327270987,1715953842425,-500.0,0.00016438,2]
[327270989,1715953842434,-500.0,0.00016438,2]
[327270991,1715953842446,-521.51,0.00016438,2]
[327270993,1715953842456,-504.02315928,0.00016438,2]
[327270995,1715953842466,-412.48,0.00016438,2]
[327270997,1715953842476,-504.14505607,0.00016438,2]
[327270999,1715953842485,-500.0,0.00016438,2]
[327271001,1715953842495,-500.0,0.00016438,2]
[327271003,1715953842505,-501.54983134,0.00016438,2]
[327271005,1715953842515,-504.05135714,0.00016438,2]
[327271007,1715953842524,-501.02206245,0.00016438,2]
[327271009,1715953842534,-503.36305944,0.00016438,2]
[327271011,1715953842544,-500.0,0.00016438,2]
[327271013,1715953842553,-499.99611016,0.00016438,2]
[327271015,1715953842563,-501.06667719,0.00016438,2]
[327271017,1715953842572,-502.06905261,0.00016438,2]
[327271019,1715953842581,-521.98164344,0.00016438,2]
[327271021,1715953842591,-500.0,0.00016438,2]
[327271023,1715953842601,-631.41400365,0.00016438,2]
[327271025,1715953842611,-500.0,0.00016438,2]
[327271027,1715953842622,-500.0,0.00016438,2]
[327271029,1715953842632,-500.0,0.00016438,2]
[327271031,1715953842643,-500.0,0.00016438,2]
[327271033,1715953842655,-421.45599634,0.00016438,2]
[327271035,1715953842665,-500.0,0.00016438,2]
[327271037,1715953842676,-500.0,0.00016438,2]
[327271039,1715953842686,-502.20593887,0.00016438,2]
[327271041,1715953842698,-500.9333789,0.00016438,2]
[327271043,1715953842708,-500.0,0.00016438,2]
[327271045,1715953842718,-500.0,0.00016438,2]
[327271047,1715953842727,-500.0,0.00016438,2]
[327271049,1715953842737,-500.0,0.00016438,2]
[327271051,1715953842747,-500.0,0.00016438,2]
[327271054,1715953842758,-500.0,0.00016438,2]
[327271055,1715953842767,-500.0,0.00016438,2]
[327271057,1715953842777,-502.52218532,0.00016438,2]
[327271060,1715953842787,-502.09119767,0.00016438,2]
[327271062,1715953842797,-500.0,0.00016438,2]
[327271064,1715953842806,-500.79962334,0.00016438,2]
[327271066,1715953842816,-500.90492189,0.00016438,2]
[327271069,1715953842826,-500.0,0.00016438,2]
[327271070,1715953842836,-510.52746801,0.00016438,2]
[327271073,1715953842846,-500.0,0.00016438,2]
[327271076,1715953842856,-500.0,0.00016438,2]
[327271078,1715953842866,-268.35997529,0.00016438,2]
[327271080,1715953842876,-500.0,0.00016438,2]
[327271081,1715953842885,-247.51575734,0.00016438,2]
[327271084,1715953842895,-500.0,0.00016438,2]
[327271086,1715953842906,-1003.49,0.00016438,2]
[327271088,1715953842916,-246.07250585,0.00016438,2]
[327271090,1715953842925,-500.0,0.00016438,2]
[327271092,1715953842934,-500.0,0.00016438,2]
[327271094,1715953842944,-500.0,0.00016438,2]
[327271095,1715953842953,-500.0,0.00016438,2]
[327271097,1715953842962,-500.0,0.00016438,2]
[327271100,1715953842972,-500.0,0.00016438,2]
[327271105,1715953842984,-502.39628546,0.00016438,2]
[327271108,1715953842993,-500.0,0.00016438,2]
[327271111,1715953843003,-500.0,0.00016438,2]
[327271114,1715953843012,-500.0,0.00016438,2]
[327271116,1715953843022,-4603.31,0.00016438,2]
[327271119,1715953843031,-500.0,0.00016438,2]
[327271120,1715953843041,-500.0,0.00016438,2]
[327271123,1715953843050,-500.0,0.00016438,2]
[327271126,1715953843059,-501.3802005,0.00016438,2]
[327271128,1715953843069,-500.0,0.00016438,2]
[327271131,1715953843078,-500.0,0.00016438,2]
[327271134,1715953843089,-500.0,0.00016438,2]
[327271137,1715953843099,-500.0,0.00016438,2]
[327271139,1715953843108,-500.0,0.00016438,2]
[327271142,1715953843118,-500.0,0.00016438,2]
[327271144,1715953843127,-500.0,0.00016438,2]
[327271146,1715953843137,-502.35738942,0.00016438,2]
[327271148,1715953843146,-500.69953264,0.00016438,2]
[327271150,1715953843155,-500.0,0.00016438,2]
[327271152,1715953843165,-500.0,0.00016438,2]
[327271154,1715953843174,-500.0,0.00016438,2]
[327271156,1715953843183,-513.427585,0.00016438,2]
[327271158,1715953843192,-500.0,0.00016438,2]
[327271160,1715953843202,-500.0,0.00016438,2]
[327271162,1715953843212,-501.63264309,0.00016438,2]
[327271164,1715953843221,-258.6,0.00016438,2]
[327271166,1715953843231,-500.0,0.00016438,2]
[327271168,1715953843241,-501.37872881,0.00016438,2]
[327271170,1715953843250,-500.0,0.00016438,2]
[327271172,1715953843260,-500.0,0.00016438,2]
[327271174,1715953843270,-501.74924601,0.00016438,2]
[327271176,1715953843279,-500.0,0.00016438,2]
[327271178,1715953843289,-501.78493775,0.00016438,2]
[327271180,1715953843298,-500.0,0.00016438,2]
[327271182,1715953843307,-501.76010348,0.00016438,2]
[327271184,1715953843316,-500.0,0.00016438,2]
[327271186,1715953843327,-512.86079033,0.00016438,2]
[327271188,1715953843337,-500.0,0.00016438,2]
[327271189,1715953843347,-500.0,0.00016438,2]
[327271191,1715953843356,-158.21638616,0.00016438,2]
[327271193,1715953843366,-500.0,0.00016438,2]
[327271195,1715953843376,-500.0,0.00016438,2]
[327271197,1715953843386,-500.0,0.00016438,2]
[327271200,1715953843395,-500.0,0.00016438,2]
[327271201,1715953843405,-500.0,0.00016438,2]
[327271203,1715953843415,-500.0,0.00016438,2]
[327271206,1715953843424,-500.0,0.00016438,2]
[327271207,1715953843434,-500.0,0.00016438,2]
[327271209,1715953843443,-206.75056341,0.00016438,2]
[327271211,1715953843453,-500.0,0.00016438,2]
[327271213,1715953843462,-500.0,0.00016438,2]
[327271216,1715953843472,-501.84372558,0.00016438,2]
[327271217,1715953843482,-500.47322055,0.00016438,2]
[327271219,1715953843492,-501.10201678,0.00016438,2]
[327271221,1715953843501,-1230.34,0.00016438,2]
[327271223,1715953843510,-502.33216634,0.00016438,2]
[327271225,1715953843520,-151.0,0.00016438,2]
[327271227,1715953843530,-500.0,0.00016438,2]
[327271229,1715953843540,-500.0,0.00016438,2]
[327271231,1715953843550,-500.4541003,0.00016438,2]
[327271233,1715953843559,-505.89911409,0.00016438,2]
[327271235,1715953843568,-501.4775317,0.00016438,2]
[327271237,1715953843579,-500.0,0.00016438,2]
[327271239,1715953843590,-500.0,0.00016438,2]
[327271241,1715953843600,-500.0,0.00016438,2]
[327271243,1715953843616,-503.48828583,0.00016438,2]
[327271244,1715953843625,-500.57130247,0.00016438,2]
[327271245,1715953843635,-500.0,0.00016438,2]
[327271246,1715953843645,-500.0,0.00016438,2]
[327271247,1715953843655,-501.15784892,0.00016438,2]
[327271248,1715953843665,-4066.14,0.00016438,2]
[327271249,1715953843674,-504.72537349,0.00016438,2]
[327271250,1715953843683,-529.68,0.00016438,2]
[327271251,1715953843694,-187.91517803,0.00016438,2]
[327271252,1715953843703,-500.0,0.00016438,2]
[327271253,1715953843713,-500.23394385,0.00016438,2]
[327271254,1715953843723,-244.22158648,0.00016438,2]
[327271255,1715953843733,-501.44855188,0.00016438,2]
[327271256,1715953843743,-500.7342289,0.00016438,2]
[327271257,1715953843752,-501.96773197,0.00016438,2]
[327271258,1715953843762,-506.37290017,0.00016438,2]
[327271259,1715953843772,-500.83302224,0.00016438,2]
[327271260,1715953843782,-622.72419462,0.00016438,2]
[327271261,1715953843791,-502.22486288,0.00016438,2]
[327271262,1715953843801,-503.24770471,0.00016438,2]
[327271263,1715953843811,-501.52258063,0.00016438,2]
[327271265,1715953843820,-500.0,0.00016438,2]
[327271267,1715953843829,-500.0,0.00016438,2]
[327271269,1715953843840,-500.0,0.00016438,2]
[327271271,1715953843849,-500.0,0.00016438,2]
[327271273,1715953843859,-501.7450112,0.00016438,2]
[327271274,1715953843868,-511.39857816,0.00016438,2]
[327271276,1715953843878,-500.0,0.00016438,2]
[327271278,1715953843887,-9429.85,0.00016438,2]
[327271280,1715953843897,-500.0,0.00016438,2]
[327271282,1715953843906,-500.0,0.00016438,2]
[327271284,1715953843916,-503.58039542,0.00016438,2]
[327271286,1715953843926,-501.58782745,0.00016438,2]
[327271288,1715953843935,-497.58485344,0.00016438,2]
[327271290,1715953843944,-500.0,0.00016438,2]
[327271292,1715953843953,-502.15376415,0.00016438,2]
[327271294,1715953843963,-500.0,0.00016438,2]
[327271296,1715953843972,-506.35604843,0.00016438,2]
[327271298,1715953843981,-500.0,0.00016438,2]
[327271300,1715953843990,-500.0,0.00016438,2]
[327271302,1715953844000,-508.0415293,0.00016438,2]
[327271304,1715953844009,-502.09108214,0.00016438,2]
[327271306,1715953844019,-501.683168,0.00016438,2]
[327271308,1715953844028,-500.0,0.00016438,2]
[327271310,1715953844037,-503.51167733,0.00016438,2]
[327271312,1715953844047,-504.38140618,0.00016438,2]
[327271314,1715953844056,-502.0663975,0.00016438,2]
[327271316,1715953844065,-500.0,0.00016438,2]
[327271318,1715953844075,-501.05395287,0.00016438,2]
[327271320,1715953844084,-500.0,0.00016438,2]
[327271321,1715953844094,-501.24730573,0.00016438,2]
[327271323,1715953844104,-501.66056055,0.00016438,2]
[327271325,1715953844113,-505.97161806,0.00016438,2]
[327271327,1715953844122,-501.85975324,0.00016438,2]
[327271329,1715953844132,-507.80704234,0.00016438,2]
[327271330,1715953844141,-500.0,0.00016438,2]
[327271331,1715953844150,-547.37,0.00016438,2]
[327271332,1715953844159,-500.0,0.00016438,2]
[327271333,1715953844168,-504.64613082,0.00016438,2]
[327271334,1715953844177,-500.0,0.00016438,2]
[327271335,1715953844186,-500.0,0.00016438,2]
[327271336,1715953844195,-503.41238744,0.00016438,2]
[327271337,1715953844204,-956.95,0.00016438,2]
[327271338,1715953844213,-500.0,0.00016438,2]
[327271339,1715953844222,-500.0,0.00016438,2]
[327271340,1715953844231,-2141.36779046,0.00016544,2]
[327271341,1715953844241,-500.0,0.00016711,2]
[327271342,1715953844250,-500.0,0.00016711,2]
[327271343,1715953844259,-500.0,0.00016711,2]
[327271344,1715953844268,-500.0,0.00016711,2]
[327271345,1715953844277,-358.31,0.00016712,2]
[327271346,1715953844286,-208.11746729,0.00016712,2]
[327271348,1715953844295,-309.92,0.00016712,2]
[327271350,1715953844304,-500.0,0.00016712,2]
[327271352,1715953844314,-409.4,0.00016712,2]
[327271354,1715953844324,-171.16,0.00016712,2]
[327271356,1715953844335,-1701.47,0.00016712,2]
[327271358,1715953844344,-295.41220081,0.00016712,2]
[327271360,1715953844353,-500.0,0.00016712,2]
[327271362,1715953844363,-500.0,0.00016712,2]
[327271364,1715953844372,-500.0,0.00016712,2]
[327271366,1715953844382,-500.0,0.00016712,2]
[327271367,1715953844392,-360.4997949,0.00016712,2]
[327271369,1715953844401,-500.0,0.00016712,2]
[327271371,1715953844411,-500.0,0.00016712,2]
[327271374,1715953844421,-421.37,0.00016712,2]
[327271376,1715953844430,-500.0,0.00016712,2]
[327271378,1715953844441,-525.8,0.00016712,2]
[327271379,1715953844450,-169.08,0.00016712,2]
[327271381,1715953844460,-348.90967529,0.00016712,2]
[327271383,1715953844469,-259.56,0.00016712,2]
[327271385,1715953844478,-500.0,0.00016712,2]
[327271387,1715953844487,-500.0,0.00016712,2]
[327271389,1715953844496,-500.0,0.00016712,2]
[327271391,1715953844506,-326.71865522,0.00016712,2]
[327271393,1715953844516,-249.52,0.00016712,2]
[327271395,1715953844525,-500.0,0.00016712,2]
[327271397,1715953844534,-417.47249467,0.00016712,2]
[327271399,1715953844544,-500.0,0.00016712,2]
[327271401,1715953844554,-500.0,0.00016712,2]
[327271403,1715953844563,-199.25,0.00016712,2]
[327271405,1715953844572,-501.02,0.00016712,2]
[327271407,1715953844583,-331.28,0.00016712,2]
[327271409,1715953844592,-500.0,0.00016712,2]
[327271411,1715953844602,-505.58600913,0.00016712,2]
[327271413,1715953844613,-648.08,0.00016712,2]
[327271415,1715953844623,-529.72,0.00016712,2]
[327271417,1715953844632,-500.0,0.00016712,2]
[327271419,1715953844642,-500.0,0.00016712,2]
[327271421,1715953844653,-500.0,0.00016712,2]
[327271423,1715953844663,-500.0,0.00016712,2]
[327271425,1715953844672,-500.85971969,0.00016712,2]
[327271427,1715953844681,-503.6156687,0.00016712,2]
[327271429,1715953844693,-503.35615081,0.00016712,2]
[327271431,1715953844702,-312.31,0.00016712,2]
[327271446,1715953844841,-500.0,0.00016712,2]
[327271448,1715953844852,-500.0,0.00016712,2]
[327271450,1715953844861,-237.75,0.00016712,2]
[327271452,1715953844871,-500.0,0.00016712,2]
[327271454,1715953844880,-574.8269778,0.00016712,2]
[327271456,1715953844890,-502.49611216,0.00016712,2]
[327271458,1715953844899,-500.0,0.00016712,2]
[327271460,1715953844909,-500.0,0.00016712,2]
[327271462,1715953844919,-247.05,0.00016712,2]
[327271464,1715953844928,-500.0,0.00016712,2]
[327271466,1715953844938,-500.0,0.00016712,2]
[327271468,1715953844947,-500.0,0.00016712,2]
[327271470,1715953844957,-500.0,0.00016712,2]
[327271472,1715953844966,-500.0,0.00016712,2]
[327271474,1715953844975,-500.0,0.00016712,2]
[327271476,1715953844985,-500.0,0.00016712,2]
[327271478,1715953844994,-500.0,0.00016712,2]
[327271480,1715953845004,-1003.49,0.00016712,2]
[327271482,1715953845013,-500.0,0.00016712,2]
[327271484,1715953845022,-500.0,0.00016712,2]
[327271485,1715953845032,-500.0,0.00016712,2]
[327271487,1715953845042,-500.0,0.00016712,2]
[327271489,1715953845051,-500.0,0.00016712,2]
[327271491,1715953845061,-398.63,0.00016712,2]
[327271493,1715953845070,-500.0,0.00016712,2]
[327271495,1715953845079,-500.0,0.00016712,2]
[327271497,1715953845089,-4603.31,0.00016712,2]
[327271499,1715953845098,-500.0,0.00016712,2]
[327271501,1715953845108,-585.04,0.00016712,2]
[327271503,1715953845117,-500.0,0.00016712,2]
[327271505,1715953845126,-500.0,0.00016712,2]
[327271507,1715953845136,-500.0,0.00016712,2]
[327271509,1715953845146,-500.0,0.00016712,2]
[327271511,1715953845156,-500.0,0.00016712,2]
[327271513,1715953845166,-500.0,0.00016712,2]
[327271515,1715953845176,-500.0,0.00016712,2]
[327271517,1715953845185,-500.0,0.00016712,2]
[327271519,1715953845195,-500.0,0.00016712,2]
[327271521,1715953845204,-500.0,0.00016712,2]
[327271523,1715953845213,-500.0,0.00016712,2]
[327271525,1715953845223,-500.0,0.00016712,2]
[327271527,1715953845232,-500.0,0.00016712,2]
[327271529,1715953845242,-500.54868686,0.00016712,2]
[327271531,1715953845252,-500.0,0.00016712,2]
[327271533,1715953845261,-500.0,0.00016712,2]
[327271535,1715953845270,-578.64,0.00016712,2]
[327271537,1715953845280,-500.0,0.00016712,2]
[327271539,1715953845289,-383.78514551,0.00016712,2]
[327271541,1715953845299,-177.45,0.00016712,2]
[327271543,1715953845308,-500.0,0.00016712,2]
[327271545,1715953845317,-1230.34,0.00016712,2]
[327271547,1715953845327,-500.0,0.00016712,2]
[327271549,1715953845337,-358.42,0.00016712,2]
[327271551,1715953845346,-500.0,0.00016712,2]
[327271553,1715953845355,-644.21,0.00016712,2]
[327271555,1715953845364,-4066.14,0.00016712,2]
[327271557,1715953845373,-529.68,0.00016712,2]
[327271559,1715953845383,-384.28,0.00016712,2]
[327271561,1715953845393,-511.98,0.00016712,2]
[327271563,1715953845403,-500.0,0.00016712,2]
[327271565,1715953845412,-500.0,0.00016712,2]
[327271567,1715953845422,-500.0,0.00016712,2]
[327271569,1715953845432,-9429.85,0.00016712,2]
[327271571,1715953845442,-253.85877786,0.00016712,2]
[327271573,1715953845451,-500.0,0.00016712,2]
[327271575,1715953845461,-569.27,0.00016712,2]
[327271577,1715953845471,-162.12183876,0.00016712,2]
[327271579,1715953845480,-552.96,0.00016712,2]
[327271581,1715953845489,-231.21454636,0.00016712,2]
[327271583,1715953845499,-500.0,0.00016712,2]
[327271585,1715953845508,-500.0,0.00016712,2]
[327271587,1715953845517,-168.0615945,0.00016712,2]
[327271590,1715953845537,-331.9384055,0.00016712,2]
[327271592,1715953845547,-547.37,0.00016712,2]
[327271594,1715953845556,-500.0,0.00016712,2]
[327271596,1715953845566,-151.0,0.00016712,2]
[327271598,1715953845576,-182.65961265,0.00016712,2]
[327271600,1715953845585,-956.95,0.00016712,2]
[327271602,1715953845595,-500.0,0.00016712,2]
[327271604,1715953845606,-500.0,0.00016712,2]
[327271606,1715953845617,-2069.36878047,0.00016749,2]
[327271608,1715953845629,-71.99900999,0.00016749,2]
[327271610,1715953845639,-169.5,0.00016854,2]
[327271612,1715953845649,-169.5,0.00016854,3]
[327271614,1715953845659,-150.0,0.00016854,3]
[327271616,1715953845668,-2141.36779046,0.00016955,2]
[327271618,1715953845677,-500.0,0.00016985,2]
[327271620,1715953845687,-500.0,0.00016985,2]
[327271622,1715953845698,-500.0,0.00016985,2]
[327271624,1715953845708,-169.12,0.00016986,2]
[327271626,1715953845717,-1701.47,0.00016986,2]
[327271628,1715953845726,-500.0,0.00016986,2]
[327271630,1715953845735,-361.64,0.00016986,2]
[327271632,1715953845745,-370.64,0.00016986,2]
[327271634,1715953845754,-500.0,0.00016986,2]
[327271636,1715953845764,-500.0,0.00016986,2]
[327271638,1715953845773,-500.0,0.00016986,2]
[327271640,1715953845782,-500.0,0.00016986,2]
[327271641,1715953845792,-500.0,0.00016986,2]
[327271644,1715953845802,-417.09,0.00016986,2]
[327271645,1715953845811,-500.0,0.00016986,2]
[327271647,1715953845821,-644.55,0.00016986,2]
[327271649,1715953845830,-279.4759292,0.00016986,2]
[327271651,1715953845842,-500.0,0.00016986,2]
[327271654,1715953845852,-501.02,0.00016986,2]
[327271655,1715953845861,-500.0,0.00016986,2]
[327271657,1715953845870,-347.94047253,0.00016986,2]
[327271661,1715953845880,-500.0,0.00016986,2]
[327271664,1715953845889,-500.0,0.00016986,2]
[327271667,1715953845898,-500.0,0.00016986,2]
[327271669,1715953845907,-500.0,0.00016986,2]
[327271671,1715953845917,-500.0,0.00016986,2]
[327271673,1715953845926,-500.0,0.00016986,2]
[327271676,1715953845935,-151.0,0.00016986,2]
[327271679,1715953845944,-252.232006,0.00016986,2]
[327271681,1715953845954,-615.84,0.00016986,2]
[327271684,1715953845963,-252.232006,0.00016986,2]
[327271687,1715953845972,-368.339174,0.00016986,2]
[327271689,1715953845982,-151.0,0.00016986,2]
[327271692,1715953845991,-368.339174,0.00016986,2]
[327271694,1715953846000,-151.0,0.00016986,2]
[327271697,1715953846009,-228.64,0.00016986,2]
[327271699,1715953846019,-500.0,0.00016986,2]
[327271701,1715953846028,-500.0,0.00016986,2]
[327271703,1715953846038,-151.645127,0.00016986,2]
[327271705,1715953846048,-500.0,0.00016986,2]
[327271707,1715953846058,-500.0,0.00016986,2]
[327271709,1715953846068,-195.42977504,0.00016986,2]
[327271711,1715953846077,-1003.49,0.00016986,2]
[327271713,1715953846088,-500.0,0.00016986,2]
[327271715,1715953846097,-500.0,0.00016986,2]
[327271717,1715953846106,-530.54,0.00016986,2]
[327271719,1715953846116,-398.52,0.00016986,2]
[327271721,1715953846125,-500.0,0.00016986,2]
[327271723,1715953846135,-4603.31,0.00016986,2]
[327271725,1715953846144,-500.0,0.00016986,2]
[327271727,1715953846154,-251.13,0.00016986,2]
[327271729,1715953846164,-500.0,0.00016986,2]
[327271731,1715953846174,-500.0,0.00016986,2]
[327271733,1715953846184,-364.5,0.00016986,2]
[327271735,1715953846193,-435.87,0.00016986,2]
[327271737,1715953846202,-151.0,0.00016986,2]
[327271739,1715953846212,-151.0,0.00016986,2]
[327271741,1715953846222,-503.14216664,0.00016986,2]
[327271743,1715953846232,-151.0,0.00016986,2]
[327271745,1715953846241,-104.68736913,0.00016986,2]
[327271752,1715953846300,-70.61578542,0.00016986,2]
[327271754,1715953846309,-500.0,0.00016986,2]
[327271756,1715953846319,-500.0,0.00016986,2]
[327271758,1715953846329,-152.055973,0.00016986,2]
[327271760,1715953846339,-500.0,0.00016986,2]
[327271762,1715953846349,-224.655113,0.00016986,2]
[327271764,1715953846358,-500.0,0.00016986,2]
[327271766,1715953846368,-224.655113,0.00016986,2]
[327271768,1715953846377,-151.0,0.00016986,2]
[327271770,1715953846387,-1230.34,0.00016986,2]
[327271772,1715953846397,-362.43,0.00016986,2]
[327271774,1715953846407,-151.0,0.00016986,2]
[327271776,1715953846416,-209.034176,0.00016986,2]
[327271778,1715953846426,-71.7859974,0.00016986,2]
[327271781,1715953846438,-428.2140026,0.00016986,2]
[327271783,1715953846448,-209.034176,0.00016986,2]
[327271785,1715953846457,-153.77684141,0.00016986,2]
[327271787,1715953846469,-3912.36315859,0.00016986,2]
[327271789,1715953846478,-529.68,0.00016986,2]
[327271791,1715953846488,-151.0,0.00016986,2]
[327271793,1715953846497,-458.97,0.00016986,2]
[327271795,1715953846507,-151.0,0.00016986,2]
[327271797,1715953846517,-500.0,0.00016986,2]
[327271799,1715953846526,-1164.58808638,0.00016986,2]
[327271843,1715953846988,-501.8612547,0.00016438,2]
[327271845,1715953846998,-8265.26191362,0.00016986,2]
[327271847,1715953847008,-519.76,0.00016986,2]
[327271849,1715953847017,-151.0,0.00016986,2]
[327271851,1715953847026,-251.956086,0.00016986,2]
[327271853,1715953847036,-151.0,0.00016986,2]
[327271855,1715953847045,-1273.25303,0.00016986,2]
[327271857,1715953847055,-1273.25303,0.00016986,2]
[327271859,1715953847064,-168.28141,0.00016986,2]
[327271861,1715953847073,-508.75,0.00016986,2]
[327271863,1715953847082,-500.0,0.00016986,2]
[327271865,1715953847092,-168.28141,0.00016986,2]
[327271867,1715953847101,-500.0,0.00016986,2]
[327271869,1715953847110,-547.37,0.00016986,2]
[327271871,1715953847119,-500.0,0.00016986,2]
[327271873,1715953847128,-956.95,0.00016986,2]
[327271875,1715953847137,-335.15,0.00016986,2]
[327271877,1715953847146,-572.91,0.00016986,2]
[327271879,1715953847156,-169.5,0.00017065,2]
[327271880,1715953847165,-2141.36779046,0.0001716,2]
[327271882,1715953847174,-151.0,0.0001716,2]
[327271885,1715953847184,-500.0,0.00017209,2]
[327271886,1715953847193,-500.0,0.00017209,2]
[327271889,1715953847203,-500.0,0.00017259,2]
[327271891,1715953847212,-1701.47,0.0001726,2]
[327271893,1715953847221,-500.0,0.0001726,2]
[327271895,1715953847230,-500.0,0.0001726,2]
[327271897,1715953847240,-500.0,0.0001726,2]
[327271899,1715953847249,-500.0,0.0001726,2]
[327271901,1715953847259,-500.0,0.0001726,2]
[327271903,1715953847269,-500.0,0.0001726,2]
[327271904,1715953847278,-500.0,0.0001726,2]
[327271906,1715953847288,-500.0,0.0001726,2]
[327271908,1715953847297,-501.02,0.0001726,2]
[327271910,1715953847306,-291.56,0.0001726,2]
[327271912,1715953847315,-500.0,0.0001726,2]
[327271914,1715953847324,-168.53,0.0001726,2]
[327271916,1715953847333,-500.0,0.0001726,2]
[327271918,1715953847344,-500.0,0.0001726,2]
[327271920,1715953847353,-500.0,0.0001726,2]
[327271922,1715953847362,-151.0,0.0001726,2]
[327271924,1715953847371,-151.0,0.0001726,2]
[327271926,1715953847380,-151.0,0.0001726,2]
[327271928,1715953847389,-532.06,0.0001726,2]
[327271930,1715953847399,-151.0,0.0001726,2]
[327271932,1715953847408,-361.93164902,0.0001726,2]
[327271934,1715953847418,-500.0,0.0001726,2]
[327271935,1715953847427,-1003.49,0.0001726,2]